Workbook

Sheet Титульный лист
A3: СОГЛАСОВАНО | F3: УТВЕРЖДАЮ
A6: Председатель наблюдательного совета ГАПОУ СО "Марксовский политехнический колледж" | F6: ГАПОУ СО "Марксовский политехнический колледж"
H7: Е.В.Гребнева
A8: (подпись) | C8: (расшифровка подписи) | F8: (подпись) | H8: (расшифровка подписи)
A9: «27» декабря 2024 г. | F9: «27» декабря 2024 г.
C16: План финансово - хозяйственной деятельности
C17: на 2025 год
C19: и плановый период 2026 и 2027 годов
I20: КОДЫ
D21: «27» декабря 2023 г. | H21: Дата | I21: 2024-12-27
H22: по Сводному реестру | I22: 63200060
A23: Наименование органа, осуществляющего функции и полномочия учредителя | D23: Министерство образования Саратовской области | H23: глава по БК | I23: 18
H24: по Сводному реестру | I24: 63220133
H25: по ОКПО | I25: 2521016
H26: ИНН | I26: 6443011725
A27: Наименование государственного бюджетного (автономного) учреждения (подразделения) | D27: государственное автономное профессиональное образовательное учреждение Саратовской области "Марксовский политехнический колледж" | H27: КПП | I27: 644301001
H28: по ОКЕИ | I28: 383
A30: Единица измерения: руб. (с точностью до второго десятичного знака)

Sheet I. Поступления и выплаты
A1: I. Поступления и выплаты
A2: Наименование показателя | B2: Код строки | C2: Код бюджетной классификации | E2: Объем финансового обеспечения, руб. (с точностью до двух знаков после запятой – 0,00) | L2: Плановый период
E3: Всего | F3: в том числе: | L3: 1-й год планового периода | M3: 2-й год планового периода
C4: Классификация доходов (расходов) бюджетов | D4: Классификация операций сектора государственного управления | F4: субсидии на финансовое обеспечение выполнения государственного задания из областного бюджета | G4: субсидии предоставляемые в соответствии с абзацем вторым пункта 1 ст. 78.1 Бюджетного кодекса Российской Федерации (субсидия на иные цели) | H4: субсидии на осуществление капитальных вложений | I4: поступления от оказания услуг (выполнения работ) на платной основе и от иной – приносящей доход деятельности
I5: всего | J5: из них гранты | K5: из них платные услуги
A6: Остаток средств на начало текущего финансового года | B6: 0001 | C6: Х | D6: Х | E6: =I6 -> 574,260.75 | H6: Х | I6: 574,260.75 | K6: =I6 -> 574,260.75
A7: Остаток средств на конец текущего финансового года | B7: 0002 | C7: Х | D7: Х | H7: Х
A8: Доходы, всего: | B8: 1000 | C8: Х | D8: Х | E8: =F8+G8+I8 -> 75,669,957.00 | F8: =F10 -> 60,662,645.00 | G8: 10,107,312.00 | I8: =K8+J8 -> 4,900,000.00 | K8: 4,900,000.00 | L8: =L10+L11+L12 -> 75,669,957.00 | M8: =M10+M11+M12 -> 75,669,957.00
A9: в том числе:
A10: Субсидии на выполнение государственного задания | B10: 1100 | C10: 130 | D10: Х | E10: =F10 -> 60,662,645.00 | F10: 60,662,645.00 | G10: Х | H10: Х | I10: Х | J10: Х | K10: Х | L10: =F10 -> 60,662,645.00 | M10: =L10 -> 60,662,645.00
A11: Субсидии на иные цели | B11: 1200 | C11: 150 | D11: Х | E11: =G11 -> 10,107,312.00 | F11: Х | G11: =G8 -> 10,107,312.00 | H11: Х | I11: Х | J11: Х | K11: Х | L11: =G11 -> 10,107,312.00 | M11: =L11 -> 10,107,312.00
A12: Поступления от иной приносящей доход деятельности, всего: | B12: 1300 | C12: Х | D12: Х | E12: =I12 -> 4,900,000.00 | F12: Х | G12: Х | H12: Х | I12: =K12+J12 -> 4,900,000.00 | K12: =K8 -> 4,900,000.00 | L12: =K12 -> 4,900,000.00 | M12: =L12 -> 4,900,000.00
A13: в том числе: | F13: Х | G13: Х | H13: Х | L13: Х | M13: Х
A14: Доходы от собственности | B14: 1310 | C14: 120 | D14: Х | F14: Х | G14: Х | H14: Х | L14: Х | M14: Х
A15: Доходы от оказания платных услуг (работ), компенсация затрат | B15: 1320 | C15: 130 | D15: Х | E15: =I15 -> 4,900,000.00 | F15: Х | G15: Х | H15: Х | I15: =K15+J15 -> 4,900,000.00 | K15: =K12 -> 4,900,000.00 | L15: 4,900.00 | M15: 4,900.00
A16: Доходы от штрафов, пеней, неустоек, возмещения ущерба | B16: 1330 | C16: 140 | D16: Х | F16: Х | G16: Х | H16: Х | L16: Х | M16: Х
A17: Безвозмездные поступления от бюджетов | B17: 1340 | C17: 150 | D17: Х | F17: Х | G17: Х | H17: Х | L17: Х | M17: Х
A18: Доходы от страховых взносов на обязательное социальное страхование | B18: 1350 | C18: 160 | D18: Х | F18: Х | G18: Х | H18: Х | L18: Х | M18: Х
A19: Доходы от операций с активами, всего | B19: 1400 | C19: Х | D19: Х
A20: в том числе:
A21: Прочие поступления, всего | B21: 1410 | C21: Х | D21: Х
A22: из них:
A23: увеличение остатков денежных средств за счет возврата дебиторской задолженности прошлых лет | B23: 1411 | C23: 510 | D23: Х
A24: Доходы от уменьшения стоимости основных средств | B24: 1500 | C24: 410 | D24: Х | F24: Х | G24: Х | H24: Х | L24: Х | M24: Х
A25: Доходы от уменьшения стоимости нематериальных активов | B25: 1600 | C25: 420 | D25: Х | F25: Х | G25: Х | H25: Х | L25: Х | M25: Х
A26: Доходы уменьшения стоимости непроизведенных активов | B26: 1700 | C26: 430 | D26: Х | F26: Х | G26: Х | H26: Х | L26: Х | M26: Х
A27: Доходы от уменьшения стоимости материальных запасов | B27: 1800 | C27: 440 | D27: Х | F27: Х | G27: Х | H27: Х | L27: Х | M27: Х
A28: Прочие доходы | B28: 1900 | C28: 180 | D28: Х | F28: Х | G28: Х | H28: Х | L28: Х | M28: Х
A29: Расходы за счет средств бюджета, всего: | B29: 2000 | C29: Х | D29: Х | E29: =F29+G29 -> 70,769,957.00 | F29: =F31+F48+F75+F93+F63 -> 60,662,645.00 | G29: =G31+G63+G91+G92+G93+G48+G95+G61+G173+G174 -> 10,107,312.00 | H29: Х | I29: Х | J29: Х | K29: Х | L29: =L48+L63+L75+L93+L31+L170 -> 66,705,462.00 | M29: =M48+M63+M75+M93+M31+M170 -> 66,705,462.00
A30: в том числе:
A31: Оплата труда и начисления на выплаты по оплате труда, всего | B31: 2100 | C31: 111, 112, 113, 119 | D31: 210, 220, 260, 296 | E31: =F31+G31 -> 48,673,885.00 | F31: =F33+F42+F37+F34 -> 48,673,885.00 | G31: =G33+G42 -> 0.00 | H31: Х | I31: Х | J31: Х | K31: Х | L31: =L33+L42 -> 44,713,700.00 | M31: =L31 -> 44,713,700.00
A32: из них:
A33: Заработная плата | B33: 2110 | C33: 111 | D33: 211 | E33: =F33+G33 -> 37,383,936.00 | F33: 37,383,936.00 | H33: Х | I33: Х | J33: Х | K33: Х | L33: 34,342,300.00 | M33: =L33 -> 34,342,300.00
A34: Социальные пособия и компенсации персоналу в денежной форме | B34: 2111 | C34: 111 | D34: 266 | E34: =F34 -> 0.00 | H34: Х | I34: Х | J34: Х | K34: Х
A35: Иные выплаты персоналу учреждений, за исключением фонда оплаты труда | B35: 2120 | C35: 112 | D35: 210, 220, 260 | H35: Х | I35: Х | J35: Х | K35: Х
A36: в том числе:
A37: Прочие несоциальные выплаты персоналу в денежной форме | B37: 2121 | C37: 112 | D37: 212 | H37: Х | I37: Х | J37: Х | K37: Х
A38: Услуги связи | B38: 2122 | C38: 112 | D38: 221
A39: Транспортные услуги | B39: 2123 | C39: 112 | D39: 222 | H39: Х | I39: Х | J39: Х | K39: Х
A40: Прочие работы, услуги | B40: 2124 | C40: 112 | D40: 226 | H40: Х | I40: Х | J40: Х | K40: Х
A41: Социальные пособия и компенсации персоналу в денежной форме | B41: 2125 | C41: 112 | D41: 266 | H41: Х | I41: Х | J41: Х | K41: Х
A42: Начисления на выплаты по оплате труда | B42: 2130 | C42: 119 | D42: 213 | E42: =F42+G42 -> 11,289,949.00 | F42: 11,289,949.00 | H42: Х | I42: Х | J42: Х | K42: Х | L42: 10,371,400.00 | M42: =L42 -> 10,371,400.00
A43: Иные выплаты, за исключением фонда оплаты труда учреждений, лицам, привлекаемым согласно законодательству для выполнения отдельных полномочий | B43: 2140 | C43: 113 | D43: 220, 296 | H43: Х | I43: Х | J43: Х | K43: Х
A44: в том числе:
A45: Транспортные услуги | B45: 2141 | C45: 113 | D45: 222 | H45: Х | I45: Х | J45: Х | K45: Х
A46: Прочие работы, услуги | B46: 2142 | C46: 113 | D46: 226 | H46: Х | I46: Х | J46: Х | K46: Х
A47: Иные выплаты текущего характера физическим лицам | B47: 2143 | C47: 113 | D47: 296 | H47: Х | I47: Х | K47: Х
A48: Оплата работ, услуг, всего | B48: 2200 | C48: 244.247 | D48: 220 | E48: =F48+G48 -> 10,675,640.00 | F48: =F50+F52+F54+F55+F62 -> 10,675,640.00 | G48: =G54+G56 -> 0.00 | I48: Х | J48: Х | K48: Х | L48: =L50+L52+L54+L55+L62 -> 10,571,330.00 | M48: =M50+M52+M54+M55+M62 -> 10,571,330.00
A49: из них:
A50: Услуги связи | B50: 2210 | C50: 244 | D50: 221 | E50: =F50 -> 205,500.00 | F50: 205,500.00 | G50: Х | H50: Х | I50: Х | J50: Х | K50: Х | L50: 205,500.00 | M50: 205,500.00
A51: Транспортные услуги | B51: 2220 | C51: 244 | D51: 222 | G51: Х | H51: Х | I51: Х | J51: Х | K51: Х
A52: Коммунальные услуги | B52: 2230 | C52: 244 | D52: 223 | E52: =F52 -> 0.00 | G52: Х | H52: Х | I52: Х | J52: Х | K52: Х
A53: Арендная плата за пользование имуществом | B53: 2240 | C53: 244 | D53: 224 | G53: Х | H53: Х | I53: Х | J53: Х | K53: Х
A54: Работы, услуги по содержанию имущества | B54: 2250 | C54: 244 | D54: 225 | E54: =F54+G54 -> 137,000.00 | F54: 137,000.00 | I54: Х | J54: Х | K54: Х | L54: 137,000.00 | M54: 137,000.00
A55: Прочие работы, услуги | B55: 2260 | C55: 244 | D55: 220 | E55: =F55 -> 2,935,440.00 | F55: =F61 -> 2,935,440.00 | I55: Х | J55: Х | K55: Х | L55: =L61 -> 2,831,130.00 | M55: =M61 -> 2,831,130.00
A56: - организация питания | B56: 2261 | C56: 244 | D56: 226 | F56: Х | I56: Х | J56: Х | K56: Х | L56: Х | M56: Х
A57: - оплата труда руководителей педагогической практики по договорам гражданско-правового характера | B57: 2262 | C57: 244 | D57: 226 | G57: Х | H57: Х | I57: Х | J57: Х | K57: Х
A58: - страхование | B58: 2263 | C58: 244 | D58: 227 | G58: Х | H58: Х | I58: Х | J58: Х | K58: Х
A59: - услуги, работы для целей капитальных вложений | B59: 2264 | C59: 244 | D59: 228 | G59: Х | H59: Х | I59: Х | J59: Х | K59: Х
A60: - арендная плата за пользование земельными участками и другими обособленными природными объектами | B60: 2265 | C60: 244 | D60: 229 | G60: Х | H60: Х | I60: Х | J60: Х | K60: Х
A61: - прочие работы, услуги | B61: 2266 | C61: 244 | D61: 226 | E61: =F61 -> 2,935,440.00 | F61: 2,935,440.00 | H61: Х | I61: Х | J61: Х | K61: Х | L61: 2,831,130.00 | M61: 2,831,130.00
A62: Закупка энергетических ресурсов | B62: 2267 | C62: 247 | D62: 223 | E62: =F62 -> 7,397,700.00 | F62: 7,397,700.00 | G62: Х | H62: Х | I62: Х | J62: Х | K62: Х | L62: 7,397,700.00 | M62: =L62 -> 7,397,700.00
A63: Социальное обеспечение и иные выплаты населению, всего | B63: 2300 | C63: Х | D63: Х | E63: =G63 -> 1,843,800.00 | F63: =F65 -> 0.00 | G63: =G65 -> 1,843,800.00 | I63: Х | J63: Х | K63: Х | L63: =G63 -> 1,843,800.00 | M63: =L63 -> 1,843,800.00
A64: в том числе:
A65: Пособия по социальной помощи населению | B65: 2310 | C65: 321 | D65: 260, 296 | E65: =G65+F65 -> 1,843,800.00 | F65: =F72 -> 0.00 | G65: =G66+G67+G68+G70+G71 -> 1,843,800.00 | I65: Х | J65: Х | K65: Х | L65: =L66+L67+L68+L70+L71 -> 1,978,800.00 | M65: =M66+M67+M68+M70+M71 -> 1,978,800.00
A66: - единовременное денежное пособие при выпуске | B66: 2311 | C66: 321 | D66: 262 | E66: =G66 -> 11,000.00 | F66: Х | G66: 11,000.00 | I66: Х | J66: Х | K66: Х | L66: 13,000.00 | M66: 13,000.00
A67: - личные расходы детям-сиротам | B67: 2312 | C67: 321 | D67: 262 | E67: 32,400.00 | F67: Х | G67: 32,400.00 | I67: Х | J67: Х | K67: Х | L67: 38,400.00 | M67: 38,400.00
A68: - ежегодное денежное пособие на приобретение литературы и письменных принадлежностей | B68: 2313 | C68: 321 | D68: 263 | E68: 117,000.00 | F68: Х | G68: 117,000.00 | I68: Х | J68: Х | K68: Х | L68: 132,500.00 | M68: 132,500.00
A69: - компенсация на питание | B69: 2314 | C69: 321 | D69: 263 | E69: 0.00 | F69: Х | I69: Х | J69: Х | K69: Х
A70: - компенсация на мягкий инвентарь | B70: 2315 | C70: 321 | D70: 263 | E70: 973,000.00 | F70: Х | G70: 973,000.00 | I70: Х | J70: Х | K70: Х | L70: 973,000.00 | M70: 973,000.00
A71: - компенсация выпускникам | B71: 2316 | C71: 321 | D71: 263 | E71: 710,400.00 | F71: Х | G71: 710,400.00 | I71: Х | J71: Х | K71: Х | L71: 821,900.00 | M71: 821,900.00
A72: - пособия бывшим сотрудникам | B72: 2317 | C72: 321 | D72: 264 | E72: =F72 -> 0.00
A73: - иные выплаты текущего характера физическим лицам | B73: 2318 | C73: 321 | D73: 296 | F73: Х | I73: Х | J73: Х | K73: Х | L73: Х | M73: Х
A74: - прочие социальные выплаты | B74: 2319 | C74: 321 | D74: 262, 263 | F74: Х | I74: Х | J74: Х | K74: Х | L74: Х | M74: Х
A75: Прочие расходы | B75: 2400 | C75: Х | D75: Х | E75: =F75+G75 -> 3,617,110.00 | F75: =F77 -> 987,410.00 | G75: =G91+G92 -> 2,629,700.00 | I75: Х | J75: Х | K75: Х | L75: =F75+G75 -> 3,617,110.00 | M75: =L75 -> 3,617,110.00
A76: в том числе:
A77: Уплата налогов, сборов и иных платежей | B77: 2410 | C77: 850 | D77: 290 | E77: =F77 -> 987,410.00 | F77: =F79+F80+F81+F83+F82 -> 987,410.00 | G77: Х | H77: Х | I77: Х | J77: Х | K77: Х | L77: =L79+L80+L81+L83 -> 1,267,400.00 | M77: =M79+M80+M81+M83 -> 1,267,400.00
A78: из них:
A79: Налог на имущество | B79: 2411 | C79: 851 | D79: 291 | E79: =F79 -> 60,000.00 | F79: 60,000.00 | G79: Х | H79: Х | I79: Х | J79: Х | K79: Х | L79: 60,000.00 | M79: 60,000.00
A80: Земельный налог | B80: 2412 | C80: 851 | D80: 291 | E80: 870,410.00 | F80: 870,410.00 | G80: Х | H80: Х | I80: Х | J80: Х | K80: Х | L80: 1,133,300.00 | M80: 1,133,300.00
A81: Транспортный налог | B81: 2413 | C81: 852 | D81: 291 | E81: 57,000.00 | F81: 57,000.00 | G81: Х | H81: Х | I81: Х | J81: Х | K81: Х | L81: 68,000.00 | M81: 68,000.00
A82: Уплата прочих налогов, сборов | B82: 2414 | C82: 852 | D82: 291 | G82: Х | H82: Х | I82: Х | J82: Х | K82: Х
A83: Уплата иных платежей | B83: 2420 | C83: 853 | D83: 290 | E83: 6,100.00 | G83: Х | H83: Х | I83: Х | J83: Х | K83: Х | L83: 6,100.00 | M83: 6,100.00
A84: из них:
A85: - налоги, пошлины и сборы | B85: 2421 | C85: 853 | D85: 291 | E85: 6,100.00 | G85: Х | H85: Х | I85: Х | J85: Х | K85: Х | L85: 6,100.00 | M85: 6,100.00
A86: - штрафы за нарушение законодательства о налогах и сборах, законодательства о страховых взносах | B86: 2422 | C86: 853 | D86: 292 | G86: Х | H86: Х | I86: Х | J86: Х | K86: Х
A87: - штрафы за нарушение законодательства о закупках и нарушение условий контрактов (договоров) | B87: 2423 | C87: 853 | D87: 293 | G87: Х | H87: Х | I87: Х | J87: Х | K87: Х
A88: - другие экономические санкции | B88: 2424 | C88: 853 | D88: 295 | G88: Х | H88: Х | I88: Х | J88: Х | K88: Х
A89: - иные выплаты текущего характера физическим лицам | B89: 2425 | C89: 853 | D89: 296 | G89: Х | H89: Х | I89: Х | J89: Х | K89: Х
A90: - иные выплаты текущего характера организациям | B90: 2426 | C90: 853 | D90: 297 | G90: Х | H90: Х | I90: Х | J90: Х | K90: Х
A91: Материальная помощь в рамках социальной поддержки обучающихся за счет средств стипендиального фонда | B91: 2430 | C91: 340 | D91: 262 | E91: =G91 -> 438,200.00 | F91: Х | G91: 438,200.00 | I91: Х | J91: Х | K91: Х | L91: 490,300.00 | M91: 490,300.00
A92: Стипендии | B92: 2440 | C92: 340 | D92: 296 | E92: =G92 -> 2,191,500.00 | F92: Х | G92: 2,191,500.00 | I92: Х | J92: Х | K92: Х | L92: 2,451,300.00 | M92: 2,451,300.00
A93: Поступление нефинансовых активов, всего | B93: 3000 | C93: 244 | D93: 300 | E93: =F93+G93 -> 5,959,522.00 | F93: =F97+F95 -> 325,710.00 | G93: =G97 -> 5,633,812.00 | I93: Х | J93: Х | K93: Х | L93: =F93+G93 -> 5,959,522.00 | M93: =L93 -> 5,959,522.00
A94: из них:
A95: Увеличение стоимости основных средств | B95: 3100 | C95: 244 | D95: 310 | H95: Х | I95: Х | J95: Х | K95: Х
A96: Увеличение стоимости нематериальных активов | B96: 3200 | C96: 244 | D96: 320 | G96: Х | H96: Х | I96: Х | J96: Х | K96: Х
A97: Увеличение стоимости материальных запасов | B97: 3300 | C97: 244 | D97: 340 | E97: =F97+G97 -> 5,959,522.00 | F97: =F100+F103+F105+F101+F102 -> 325,710.00 | G97: =G98+G99+G103 -> 5,633,812.00 | I97: Х | J97: Х | K97: Х | L97: =F97+G97 -> 5,959,522.00 | M97: =M98+M99+M100+M101+M102+M103+M104+M105 -> 6,368,790.00
A98: - увеличение стоимости лекарственных препаратов и материалов, применяемых в медицинских целях | B98: 3310 | C98: 244 | D98: 341 | E98: =F98+G98 -> 34,900.00 | F98: 0.00 | G98: 34,900.00 | I98: Х | J98: Х | K98: Х | L98: 44,900.00 | M98: 44,900.00
A99: - увеличение стоимости продуктов питания | B99: 3320 | C99: 244 | D99: 342 | E99: =F99+G99 -> 5,598,912.00 | F99: 0.00 | G99: 5,598,912.00 | I99: Х | J99: Х | K99: Х | L99: 5,998,900.00 | M99: 5,998,900.00
A100: - увеличение стоимости горюче-смазочных материалов | B100: 3330 | C100: 244 | D100: 343 | E100: 90,000.00 | F100: 90,000.00 | I100: Х | J100: Х | K100: Х | L100: 90,000.00 | M100: 90,000.00
A101: - увеличение стоимости строительных материалов | B101: 3340 | C101: 244 | D101: 344 | E101: 0.00 | I101: Х | J101: Х | K101: Х
A102: - увеличение стоимости мягкого инвентаря | B102: 3350 | C102: 244 | D102: 345 | E102: 0.00 | I102: Х | J102: Х | K102: Х
A103: - увеличение стоимости прочих оборотных запасов (материалов) | B103: 3360 | C103: 244 | D103: 346 | E103: 207,630.00 | F103: 207,630.00 | I103: Х | J103: Х | K103: Х | L103: 207,630.00 | M103: 207,630.00
A104: - увеличение стоимости материальных запасов для целей капитальных вложений | B104: 3370 | C104: 244 | D104: 347 | E104: 0.00 | I104: Х | J104: Х | K104: Х
A105: - увеличение стоимости прочих материальных запасов однократного применения | B105: 3380 | C105: 244 | D105: 349 | E105: =F105+G105 -> 28,080.00 | F105: 28,080.00 | I105: Х | J105: Х | K105: Х | L105: 27,360.00 | M105: 27,360.00
A106: Выплаты уменьшающие доход, всего | B106: 4000 | C106: 100 | D106: Х | E106: =I106 -> -10990 | I106: =K106 -> -10990 | K106: =K108 -> -10990
A107: в том числе:
A108: Налог на прибыль | B108: 4010 | E108: =I108 -> -10990 | I108: =K108 -> -10990 | K108: -10990
A109: Налог на добавленную стоимость | B109: 4020
A110: Прочие налоги | B110: 4030
A111: Прочие выплаты, всего | B111: 4100 | C111: Х | D111: Х
A112: из них:
A113: Возврат в бюджет средств субсидии | B113: 4110 | C113: 610
A114: Справочно:
A115: Объем публичных обязательств, всего | B115: 4500 | C115: Х | D115: Х | E115: =G115 -> 2,673,100.00 | G115: =G91+G92+G66+G67 -> 2,673,100.00 | I115: Х | J115: Х | K115: Х | L115: =G115 -> 2,673,100.00 | M115: =L115 -> 2,673,100.00
A116: Погашение кредиторской задолженности за отчетный год и предыдущие годы всего: | B116: 5000 | C116: Х | D116: Х | F116: Х | I116: Х | J116: Х | K116: Х | L116: Х | M116: Х
A117: в том числе:
A118: Заработная плата | B118: 5100 | C118: 111 | D118: 211 | F118: Х | H118: Х | I118: Х | J118: Х | K118: Х | L118: Х | M118: Х
A119: Начисления на выплаты по оплате труда | B119: 5200 | C119: 119 | D119: 213 | F119: Х | H119: Х | I119: Х | J119: Х | K119: Х | L119: Х | M119: Х
A120: Работы, услуги по содержанию имущества | B120: 5300 | C120: 244 | D120: 225 | F120: Х | I120: Х | J120: Х | K120: Х | L120: Х | M120: Х
A121: Прочие работы, услуги | B121: 5400 | C121: 244 | D121: 226 | F121: Х | I121: Х | J121: Х | K121: Х | L121: Х | M121: Х
A122: Страхование | B122: 5510 | C122: 244 | D122: 227 | F122: Х | I122: Х | J122: Х | K122: Х | L122: Х | M122: Х
A123: Услуги, работы для целей капитальных вложений | B123: 5520 | C123: 244 | D123: 228 | F123: Х | I123: Х | J123: Х | K123: Х | L123: Х | M123: Х
A124: Арендная плата за пользование земельными участками и другими обособленными природными объектами | B124: 5530 | C124: 244 | D124: 229 | F124: Х | I124: Х | J124: Х | K124: Х | L124: Х | M124: Х
A125: Увеличение стоимости основных средств | B125: 5600 | C125: 244 | D125: 310 | F125: Х | I125: Х | J125: Х | K125: Х | L125: Х | M125: Х
A126: Увеличение стоимости материальных запасов | B126: 5700 | C126: 244 | D126: 340 | F126: Х | I126: Х | J126: Х | K126: Х | L126: Х | M126: Х
A127: - увеличение стоимости лекарственных препаратов и материалов, применяемых в медицинских целях | B127: 5710 | C127: 244 | D127: 341 | F127: Х | I127: Х | J127: Х | K127: Х | L127: Х | M127: Х
A128: - увеличение стоимости продуктов питания | B128: 5720 | C128: 244 | D128: 342 | F128: Х | I128: Х | J128: Х | K128: Х | L128: Х | M128: Х
A129: - увеличение стоимости горюче-смазочных материалов | B129: 5730 | C129: 244 | D129: 343 | F129: Х | I129: Х | J129: Х | K129: Х | L129: Х | M129: Х
A130: - увеличение стоимости строительных материалов | B130: 5740 | C130: 244 | D130: 344 | F130: Х | I130: Х | J130: Х | K130: Х | L130: Х | M130: Х
A131: - увеличение стоимости мягкого инвентаря | B131: 5750 | C131: 244 | D131: 345 | F131: Х | I131: Х | J131: Х | K131: Х | L131: Х | M131: Х
A132: - увеличение стоимости прочих оборотных запасов (материалов) | B132: 5760 | C132: 244 | D132: 346 | F132: Х | I132: Х | J132: Х | K132: Х | L132: Х | M132: Х
A133: - увеличение стоимости материальных запасов для целей капитальных вложений | B133: 5770 | C133: 244 | D133: 347 | F133: Х | I133: Х | J133: Х | K133: Х | L133: Х | M133: Х
A134: - увеличение стоимости прочих материальных запасов однократного применения | B134: 5780 | C134: 244 | D134: 349 | F134: Х | I134: Х | J134: Х | K134: Х | L134: Х | M134: Х
A135: Погашение кредиторской задолженности по мероприятиям, в том числе программным мероприятиям по исполнительным листам, всего: | B135: 6000 | C135: Х | D135: Х
A136: в том числе:
A137: Работы, услуги по содержанию имущества | B137: 6100 | C137: 244 | D137: 225
A138: Прочие работы, услуги | B138: 6200 | C138: 244 | D138: 226 | F138: Х | I138: Х | J138: Х | K138: Х | L138: Х | M138: Х
A139: Страхование | B139: 6310 | C139: 244 | D139: 227 | F139: Х | I139: Х | J139: Х | K139: Х | L139: Х | M139: Х
A140: Услуги, работы для целей капитальных вложений | B140: 6320 | C140: 244 | D140: 228 | F140: Х | I140: Х | J140: Х | K140: Х | L140: Х | M140: Х
A141: Арендная плата за пользование земельными участками и другими обособленными природными объектами | B141: 6330 | C141: 244 | D141: 229 | F141: Х | I141: Х | J141: Х | K141: Х | L141: Х | M141: Х
A142: Исполнение судебных актов Российской Федерации и мировых соглашений по возмещению причиненного вреда | B142: 6400 | C142: 831 | D142: 290 | F142: Х | I142: Х | J142: Х | K142: Х | L142: Х | M142: Х
A143: из них:
A144: Иные выплаты текущего характера физическим лицам | B144: 6410 | C144: 831 | D144: 296 | F144: Х | I144: Х | J144: Х | K144: Х | L144: Х | M144: Х
A145: Иные выплаты текущего характера организациям | B145: 6420 | C145: 831 | D145: 297 | F145: Х | I145: Х | J145: Х | K145: Х | L145: Х | M145: Х
A146: Уплата прочих налогов, сборов | B146: 6500 | C146: 852 | D146: 291 | F146: Х | I146: Х | J146: Х | K146: Х | L146: Х | M146: Х
A147: Уплата иных платежей | B147: 6600 | C147: 853 | D147: 290 | F147: Х | I147: Х | J147: Х | K147: Х | L147: Х | M147: Х
A148: в том числе: | I148: Х | J148: Х | K148: Х
A149: - налоги, пошлины и сборы | B149: 6610 | C149: 853 | D149: 291 | F149: Х | I149: Х | J149: Х | K149: Х | L149: Х | M149: Х
A150: - штрафы за нарушение законодательства о налогах и сборах, законодательства о страховых взносах | B150: 6620 | C150: 853 | D150: 292 | F150: Х | I150: Х | J150: Х | K150: Х | L150: Х | M150: Х
A151: - штрафы за нарушение законодательства о закупках и нарушение условий контрактов (договоров) | B151: 6630 | C151: 853 | D151: 293 | F151: Х | I151: Х | J151: Х | K151: Х | L151: Х | M151: Х
A152: - другие экономические санкции | B152: 6640 | C152: 853 | D152: 295 | F152: Х | I152: Х | J152: Х | K152: Х | L152: Х | M152: Х
A153: -иные выплаты текущего характера физическим лицам | B153: 6650 | C153: 853 | D153: 296 | F153: Х | I153: Х | J153: Х | K153: Х | L153: Х | M153: Х
A154: - иные выплаты текущего характера организациям | B154: 6660 | C154: 853 | D154: 297 | F154: Х | I154: Х | J154: Х | K154: Х | L154: Х | M154: Х
A155: Увеличение стоимости основных средств | B155: 6700 | C155: 244 | D155: 310 | F155: Х | I155: Х | J155: Х | K155: Х | L155: Х | M155: Х
A156: Увеличение стоимости материальных запасов | B156: 6800 | C156: 244 | D156: 340 | F156: Х | I156: Х | J156: Х | K156: Х | L156: Х | M156: Х
A157: в том числе:
A158: - увеличение стоимости лекарственных препаратов и материалов, применяемых в медицинских целях | B158: 6810 | C158: 244 | D158: 341 | F158: Х | I158: Х | J158: Х | K158: Х | L158: Х | M158: Х
A159: - увеличение стоимости продуктов питания | B159: 6820 | C159: 244 | D159: 342 | F159: Х | I159: Х | J159: Х | K159: Х | L159: Х | M159: Х
A160: - увеличение стоимости горюче-смазочных материалов | B160: 6830 | C160: 244 | D160: 343 | F160: Х | I160: Х | J160: Х | K160: Х | L160: Х | M160: Х
A161: - увеличение стоимости строительных материалов | B161: 6840 | C161: 244 | D161: 344 | F161: Х | I161: Х | J161: Х | K161: Х | L161: Х | M161: Х
A162: - увеличение стоимости мягкого инвентаря | B162: 6850 | C162: 244 | D162: 345 | F162: Х | I162: Х | J162: Х | K162: Х | L162: Х | M162: Х
A163: - увеличение стоимости прочих оборотных запасов (материалов) | B163: 6860 | C163: 244 | D163: 346 | F163: Х | I163: Х | J163: Х | K163: Х | L163: Х | M163: Х
A164: - увеличение стоимости материальных запасов для целей капитальных вложений | B164: 6870 | C164: 244 | D164: 347 | F164: Х | I164: Х | J164: Х | K164: Х | L164: Х | M164: Х
A165: - увеличение стоимости прочих материальных запасов однократного применения | B165: 6880 | C165: 244 | D165: 349 | F165: Х | I165: Х | J165: Х | K165: Х | L165: Х | M165: Х
A166: Социальное обеспечение | B166: 6900 | C166: 321 | D166: 260 | F166: Х | I166: Х | J166: Х | K166: Х | L166: Х | M166: Х
A167: из них:
A168: Пособия по социальной помощи населению в денежной форме | B168: 6910 | C168: 321 | D168: 262 | F168: Х | I168: Х | J168: Х | K168: Х | L168: Х | M168: Х
A169: Пособия по социальной помощи населению в натуральной форме | B169: 6920 | C169: 321 | D169: 263 | F169: Х | I169: Х | J169: Х | K169: Х | L169: Х | M169: Х
A170: За счет федеральных средств | B170: 7000 | C170: Х | D170: Х | E170: =E173 -> 0.00 | G170: =G173 -> 0.00 | L170: =G170 -> 0.00 | M170: =L170 -> 0.00
A171: из них:
A172: -реализация проекта/ государственной программы | B172: 7100 | C172: Х | D172: Х | F172: Х | I172: Х | J172: Х | K172: Х | L172: Х | M172: Х
A173: Государственная программа Саратовской области "Развитие образования в Саратовской области" подпрограмма "Развитие профессионального образования" мероприятие "Ежемесячное денежное вознаграждение за классное руководство (кураторство) педагогическим работникам государственных образовательных организаций, реализубщих образовательные программы среднего профессионального образования, в том числе программы профессионального обучения для лиц с ограниченными возможностями здоровья" | B173: 7200 | C173: Х | D173: Х | E173: =G173 -> 0.00 | F173: Х | I173: Х | J173: Х | K173: Х | L173: =G173 -> 0.00 | M173: =L173 -> 0.00
A174: Государственные программы: (наименование программы) | B174: 8000 | C174: Х | D174: Х | E174: =G174 -> 0.00 | G174: =E17 -> 0.00 | I174: Х | J174: Х | K174: Х
A175: Государственная программа Саратовской области «Развитие образования в Саратовской области», подпрограмма "Развитие профессионального образования", мероприятие «Проведение демонстрационного экзамена в качестве итоговой государственной аттестации выпускников» | B175: 8100 | E175: =G175 -> 0.00
A176: Госудаоственная программа Саратовской области «Профилактика правонарушений, терроризма, экстремизма и противодействие незаконному обороту наркотических средств».Подпрограмма "Профилактика терроризма и экстремизма в Саратовской области" Мероприятие «Усиление антитеррористической защищенности объектов социальной сферы»» | B176: 8200 | E176: =G176 -> 0.00
A177: Государственная программа Саратовской области «Развитие образования в Саратовской области», подпрограмма "Развитие профессионального образования" мероприятие «Оснащение и укрепление материально-технической базы подведомственных образовательных организаций» | B177: 8300 | E177: 0.00
A178: Государственная программа Саратовской области «Развитие образования в Саратовской области», подпрограмма "Развитие профессионального образования", мероприятие «Развитие инфраструктуры образования и повышение ее инвестиционной привлекательности» | B178: 8400 | E178: 0.00
A179: Расходы за счет доходов, полученных от платной и иной приносящей доход деятельности, всего: | B179: 9000 | C179: Х | D179: Х | E179: =I179 -> 5,474,240.75 | F179: Х | G179: Х | H179: Х | I179: =K179+J179 -> 5,474,240.75 | K179: =K181+K198+K212+K223+K245-K106 -> 5,474,240.75 | L179: =L181+L198+L229+L244+L245+L235 -> 5,192,500.00 | M179: =M181+M198+M229+M244+M245+M235 -> 5,192,500.00
A180: в том числе:
A181: Оплата труда и начисления на выплаты по оплате труда, всего | B181: 9100 | C181: 111, 112, 113 119 | D181: 210, 220, 260, 296 | E181: =I181 -> 2,083,180.00 | F181: Х | G181: Х | H181: Х | I181: =K181 -> 2,083,180.00 | K181: =K183+K185+K192+K184 -> 2,083,180.00 | L181: =L183+L185+L192 -> 2,083,200.00 | M181: =M183+M185+M192 -> 2,083,200.00
A182: из них:
A183: Оплата труда и начисления на выплаты по оплате труда, всего | B183: 9110 | C183: 111 | D183: 211 | E183: =I183 -> 1,593,330.00 | F183: Х | G183: Х | H183: Х | I183: =K183 -> 1,593,330.00 | K183: 1,593,330.00 | L183: 1,600,000.00 | M183: =L183 -> 1,600,000.00
A184: Социальные пособия и компенсации персоналу в денежной форме | B184: 9111 | C184: 111 | D184: 266 | F184: Х | G184: Х | H184: Х | I184: =K184 -> 0.00
A185: Иные выплаты персоналу учреждений, за исключением фонда оплаты труда | B185: 9120 | C185: 112 | D185: 210, 220, 260 | E185: =I185 -> 6,650.00 | F185: Х | G185: Х | H185: Х | I185: =K185 -> 6,650.00 | K185: =K187 -> 6,650.00
A186: в том числе:
A187: Прочие несоциальные выплаты персоналу в денежной форме | B187: 9121 | C187: 112 | D187: 212 | E187: =I187 -> 6,650.00 | F187: Х | G187: Х | H187: Х | I187: =K187 -> 6,650.00 | K187: 6,650.00
A188: Услуги связи | B188: 9122 | C188: 112 | D188: 221 | F188: Х | G188: Х | H188: Х
A189: Транспортные услуги | B189: 9123 | C189: 112 | D189: 222 | F189: Х | G189: Х | H189: Х
A190: Прочие работы, услуги | B190: 9124 | C190: 112 | D190: 226 | F190: Х | G190: Х | H190: Х
A191: Социальные пособия и компенсации персоналу в денежной форме | B191: 9125 | C191: 112 | D191: 266 | F191: Х | G191: Х | H191: Х
A192: Начисления на выплаты по оплате труда | B192: 9130 | C192: 119 | D192: 213 | E192: =I192 -> 483,200.00 | F192: Х | G192: Х | H192: Х | I192: =K192 -> 483,200.00 | K192: 483,200.00 | L192: 483,200.00 | M192: 483,200.00
A193: Иные выплаты, за исключением фонда оплаты труда учреждений, лицам, привлекаемым согласно законодательству для выполнения отдельных полномочий | B193: 9140 | C193: 113 | D193: 220, 296 | F193: Х | G193: Х | H193: Х
A194: в том числе:
A195: Транспортные услуги | B195: 9141 | C195: 113 | D195: 222 | F195: Х | G195: Х | H195: Х
A196: Прочие работы, услуги | B196: 9142 | C196: 113 | D196: 226 | F196: Х | G196: Х | H196: Х
A197: Иные выплаты текущего характера физическим лицам | B197: 9143 | C197: 113 | D197: 296 | F197: Х | G197: Х | H197: Х
A198: Оплата работ, услуг, всего | B198: 9200 | C198: 244 | D198: 220 | E198: =SUM(E200:E206) -> 1,428,000.00 | F198: Х | G198: Х | H198: Х | I198: =K198 -> 1,428,000.00 | K198: =K202+K203+K204+K205 -> 1,428,000.00 | L198: =L202+L203+L204+L205 -> 1,428,000.00 | M198: =M202+M203+M204+M205 -> 1,428,000.00
A199: из них:
A200: Услуги связи | B200: 9210 | C200: 244 | D200: 221 | E200: =I200 -> 0.00 | F200: Х | G200: Х | H200: Х | I200: =K200 -> 0.00
... 57 more rows

Sheet II. Сведения по выплатам на зак
A1: II. Сведения по выплатам на закупки товаров, работ, услуг
A2: № п/п | B2: Наименование показателя | C2: Коды строк | D2: Год начала закупки | E2: Код по бюджетной классификации Российской Федерации | F2: Сумма
F3: на 2023 г. (текущий финансовый год) | G3: на 2024 г.(1-й год планового периода) | H3: на 2025 г. (2-й год планового периода) | I3: за пределами планового периода
A5: 1 | B5: 2 | C5: 3 | D5: 4 | E5: 4.1 | F5: 5 | G5: 6 | H5: 7 | I5: 8
A6: 1 | B6: Выплаты на закупку товаров, работ, услуг, всего | C6: 26000 | D6: х | E6: 244.247 | F6: =F14 -> 19,779,502.75 | G6: =G14 -> 20,000,740.00 | H6: 20,000,740.00
B7: в том числе:
A8: 1.1. | B8: по контрактам (договорам), заключенным до начала текущего финансового года без применения норм Федерального закона от 5 апреля 2013 г. № 44-ФЗ «О контрактной системе в сфере закупок товаров, работ, услуг для обеспечения государственных и муниципальных нужд» (далее - Федеральный закон № 44-ФЗ) и Федерального закона от 18 июля 2011 г. № 223-ФЗ «О закупках товаров, работ, услуг отдельными видами юридических лиц» (далее - Федеральный закон № 223-ФЗ) | C8: 26100 | D8: х
A9: 1.2. | B9: по контрактам (договорам), планируемым к заключению в соответствующем финансовом году без применения норм Федерального закона № 44-ФЗ и Федерального закона № 223-ФЗ | C9: 26200 | D9: х
A10: 1.3. | B10: по контрактам (договорам), заключенным до начала текущего финансового года с учетом требований Федерального закона № 44-ФЗ и Федерального закона № 223-ФЗ | C10: 26300 | D10: х
A11: 1.3.1 | B11: в том числе: в соответствии с Федеральным законом № 44-ФЗ | C11: 26310 | D11: x | E11: x
B12: из них: в целях достижения результатов регионального проекта, обеспечивающего достижение целей, показателей и результатов федерального проекта соответствующего национального проекта (программы) | C12: 26310.1
A13: 1.3.2 | B13: в соответствии с Федеральным законом № 223-ФЗ | C13: 26320 | D13: x | E13: x
A14: 1.4. | B14: по контрактам (договорам), планируемым к заключению в соответствующем финансовом году с учетом требований Федерального закона № 44-ФЗ и Федерального закона № 223-ФЗ | C14: 26400 | D14: х | E14: 244.247 | F14: =F16+F20+F27 -> 19,779,502.75 | G14: =G16+G20+G27 -> 20,000,740.00 | H14: =H16+H20+H27 -> 20,000,740.00
B15: в том числе:
A16: 1.4.1 | B16: за счет субсидий, предоставляемых на финансовое обеспечение выполнения государственного задания | C16: 26410 | D16: х | E16: 244.247 | F16: =F19 -> 10,765,640.00 | G16: =G19 -> 10,765,640.00 | H16: 10,765,640.00
B17: в том числе:
A18: 1.4.1.1. | B18: в соответствии с Федеральным законом № 44-ФЗ | C18: 26411 | D18: х
A19: 1.4.1.2. | B19: в соответствии с Федеральным законом № 223-ФЗ | C19: 26412 | D19: х | E19: 244.247 | F19: 10,765,640.00 | G19: =F19 -> 10,765,640.00 | H19: =G19 -> 10,765,640.00
A20: 1.4.2. | B20: за счет субсидий, предоставляемых в соответствии с абзацем вторым пункта 1 статьи 78.1 Бюджетного кодекса Российской Федерации (субсидии на иные цели) | C20: 26420 | D20: х | E20: 244 | F20: 5,633,812.00 | G20: 6,043,800.00 | H20: =G20 -> 6,043,800.00
B21: в том числе:
A22: 1.4.2.1 | B22: в соответствии с Федеральным законом № 44-ФЗ | C22: 26421 | D22: х
B23: из них: в целях достижения результатов регионального проекта, обеспечивающего достижение целей, показателей и результатов федерального проекта соответствующего национального проекта (программы) | C23: 26421.1 | D23: x
A24: 1.4.2.2. | B24: в соответствии с Федеральным законом № 223-ФЗ | C24: 26422 | D24: х | E24: 244 | F24: 9,780,356.42 | G24: 6,043,800.00 | H24: =G24 -> 6,043,800.00
A25: 1.4.3. | B25: за счет субсидий, предоставляемых на осуществление капитальных вложений | C25: 26430 | D25: х
B26: из них: в целях достижения результатов регионального проекта, обеспечивающего достижение целей, показателей и результатов федерального проекта соответствующего национального проекта (программы) | C26: 26430.1 | D26: x
A27: 1.4.5. | B27: за счет прочих источников финансового обеспечения | C27: 26450 | D27: х | E27: 244 | F27: 3,380,050.75 | G27: 3,191,300.00 | H27: 3,191,300.00
B28: в том числе:
A29: 1.4.5.1. | B29: в соответствии с Федеральным законом № 44-ФЗ | C29: 26451 | D29: х
B30: из них: в целях достижения результатов регионального проекта, обеспечивающего достижение целей, показателей и результатов федерального проекта соответствующего национального проекта (программы) | C30: 26451.1 | D30: x
A31: 1.4.5.2. | B31: в соответствии с Федеральным законом № 223-ФЗ | C31: 26452 | D31: х | E31: 244 | F31: =F27 -> 3,380,050.75 | G31: 3,191,300.00 | H31: =G31 -> 3,191,300.00
A32: 2. | B32: Итого по контрактам, планируемым к заключению в соответствующем финансовом году в соответствии с Федеральным законом № 44-ФЗ, по соответствующему году закупки | C32: 26500 | D32: х
B33: в том числе по году начала закупки: | C33: 26510
A34: 3. | B34: Итого по договорам, планируемым к заключению в соответствующем финансовом году в соответствии с Федеральным законом № 223-ФЗ, по соответствующему году закупки | C34: 26600 | D34: х | E34: 244.247 | F34: =F19+F24+F31 -> 23,926,047.17 | G34: =G19+G24+G31 -> 20,000,740.00 | H34: =H19+H24+H31 -> 20,000,740.00
B35: в том числе по году начала закупки: | C35: 26610 | E35: 244.247 | F35: =F34 -> 23,926,047.17 | G35: =G34 -> 20,000,740.00 | H35: 20,000,740.00
B38: Главный бухгалтер государственного бюджетного (автономного) учреждения (подразделения)
F39: А.А. Лыгина
D40: (подпись) | F40: (расшифровка подписи)
B41: Исполнитель | F41: А.А. Лыгина
D42: (подпись) | F42: (расшифровка подписи)
B43: Директор | F43: Е.В. Гребнева
D44: (подпись) | F44: (расшифровка подписи)
B45: Телефон | F45: 8(84567) 5-54-16
F46: (телефон)
B48: «27» декабря 2024 г.
